bitfinex/quotes_SOLUSD_20260222
["timestamp","ask_amount","ask_price","bid_price","bid_amount"]
[1771790646595,0.47332524,83.389,83.361,0.4919956]
[1771790646789,0.47332524,83.387,83.361,0.4919956]
[1771790648884,0.47850707,83.385,83.361,0.4919956]
[1771790652701,11.05166948,83.386,83.359,0.48303925]
[1771790654804,0.47850707,83.385,83.359,0.48303925]
[1771790672143,0.49642136,83.405,83.361,0.46548139]
[1771790673638,11.98983262,83.404,83.363,0.46548139]
[1771790673821,0.49642136,83.403,83.363,0.46548139]
[1771790674629,0.49642136,83.403,83.362,11.99587341]
[1771790674630,0.49642136,83.403,83.371,0.46548139]
[1771790675746,0.49642136,83.401,83.371,0.46548139]
[1771790680143,11.99040767,83.4,83.371,0.46548139]
[1771790680448,0.47941064,83.399,83.371,0.46548139]
[1771790685455,0.47941064,83.397,83.371,0.46548139]
[1771790687255,11.99098278,83.396,83.371,0.46548139]
[1771790687447,0.47941064,83.395,83.371,0.46548139]
[1771790690258,0.47941064,83.393,83.371,0.46548139]
[1771790694959,11.99155794,83.392,83.371,0.46548139]
[1771790695166,0.47941064,83.391,83.371,0.46548139]
[1771790695458,0.47941064,83.389,83.352,11.9973126]
[1771790695645,0.47941064,83.379,83.352,11.9973126]
[1771790697454,0.47941064,83.379,83.354,11.99702473]
[1771790697663,0.47941064,83.379,83.354,12.49201573]
[1771790698766,3.09750951,83.4,83.344,11.99846016]
[1771790698767,0.47941064,83.369,83.344,11.99846016]
[1771790698949,0.47941064,83.369,83.345,0.494991]
[1771790699567,0.47941064,83.349,83.33,0.2]
[1771790699865,11.99551378,83.365,83.331,0.494991]
[1771790701561,41.98232915,83.369,83.333,0.494991]
[1771790701766,0.47941064,83.368,83.333,0.494991]
[1771790703763,0.47941064,83.366,83.335,0.494991]
[1771790704549,11.99384085,83.377,83.351,0.494991]
[1771790705570,0.47941064,83.377,83.351,0.494991]
[1771790707464,0.47941064,83.398,83.371,0.494991]
[1771790707771,11.99083899,83.397,83.371,0.494991]
[1771790708980,16.48581489,83.43,83.391,0.49815549]
[1771790709153,16.48581489,83.43,83.373,0.28432314]
[1771790709154,0.47013999,83.439,83.4,3.09750951]
[1771790709469,0.47013999,83.437,83.4,3.09750951]
[1771790709974,0.47013999,83.435,83.4,15.08779696]
[1771790710876,0.47013999,83.429,83.4,11.99028745]
[1771790711171,0.47013999,83.429,83.401,0.49815549]
[1771790718768,0.47013999,83.429,83.403,0.47534107]
[1771790721576,0.47489368,83.44,83.411,0.47534107]
[1771790723069,12.45911007,83.444,83.411,0.47534107]
[1771790723573,0.47489368,83.443,83.411,0.47534107]
[1771790723774,11.98437237,83.442,83.412,0.47534107]
[1771790724690,0.47489368,83.441,83.412,0.47534107]
[1771790725394,0.47489368,83.439,83.412,0.47534107]
[1771790727215,0.47489368,83.437,83.412,0.47534107]
[1771790734032,0.47489368,83.441,83.412,0.47534107]
[1771790734337,0.47489368,83.445,83.414,0.47534107]
[1771790736332,11.98408513,83.444,83.414,0.47534107]
[1771790736911,11.98408513,83.444,83.394,29.97805614]
[1771790736912,0.47489368,83.469,83.431,0.47534107]
[1771790737527,0.47489368,83.461,83.431,0.47534107]
[1771790738506,0.47489368,83.461,83.433,0.47108981]
[1771790739616,11.98049575,83.469,83.441,0.47108981]
[1771790741040,11.98049575,83.469,83.434,11.98552149]
[1771790741041,0.49517768,83.459,83.435,0.47108981]
[1771790741838,0.49517768,83.459,83.437,0.47108981]
[1771790742841,0.49517768,83.459,83.438,11.9849469]
[1771790743140,0.49517768,83.459,83.439,0.47108981]
[1771790745242,0.49517768,83.459,83.441,0.47108981]
[1771790753446,0.49517768,83.459,83.441,0.43872106]
[1771790755335,0.5,83.46,83.441,0.43872106]
[1771790759961,0.1,83.47,83.443,0.47108981]
[1771790760255,12.08036211,83.47,83.443,0.47108981]
[1771790760654,0.49517768,83.469,83.411,0.28432314]
[1771790760858,0.49517768,83.459,83.42,3.09260182]
[1771790761863,0.49517768,83.459,83.421,11.98738926]
[1771790762858,0.49517768,83.459,83.422,0.47108981]
[1771790763955,3.09260182,83.45,83.424,0.47108981]
[1771790764161,0.49517768,83.449,83.423,12.45819168]
[1771790764354,0.49517768,83.449,83.423,11.98710187]
[1771790764756,0.49517768,83.449,83.423,12.45819168]
[1771790765250,0.49517768,83.449,83.424,0.47108981]
[1771790767461,0.49517768,83.449,83.425,11.9868145]
[1771790767851,0.49517768,83.449,83.425,12.45790431]
[1771790768563,0.49517768,83.449,83.426,0.49767062]
[1771790770065,0.49517768,83.449,83.428,0.49767062]
[1771790770253,0.49379125,83.457,83.428,0.49767062]
[1771790771948,0.49379125,83.449,83.419,0.49767062]
[1771790774168,3.09260182,83.44,83.407,0.49767062]
[1771790774370,0.49379125,83.439,83.407,0.49767062]
[1771790777171,0.48201124,83.437,83.409,0.46450746]
[1771790779356,11.98523419,83.436,83.409,0.46450746]
[1771790779556,0.48201124,83.435,83.409,0.46450746]
[1771790781167,0.48201124,83.435,83.391,45.40193818]
[1771790781168,0.48201124,83.435,83.404,0.46450746]
[1771790781481,0.48201124,83.419,83.399,0.46450746]
[1771790783967,0.48201124,83.429,83.4,11.99040767]
[1771790784172,0.48201124,83.429,83.401,0.46450746]
[1771790786988,0.48201124,83.429,83.403,0.46450746]
[1771790791573,0.48201124,83.429,83.405,0.46450746]
[1771790793292,0.48201124,83.429,83.407,0.46450746]
[1771790804596,3.09260182,83.44,83.391,0.47357996]
[1771790804597,0.46528722,83.419,83.391,0.47357996]
[1771790806301,0.46528722,83.417,83.391,0.47357996]
[1771790806789,0.46528722,83.417,83.393,0.47357996]
[1771790810003,0.46528722,83.415,83.393,0.47357996]
[1771790810499,0.46528722,83.415,83.388,0.47357996]
[1771790810709,0.46528722,83.409,83.387,11.99217501]
[1771790812986,0.46528722,83.409,83.378,0.47357996]
[1771790814488,0.46528722,83.409,83.38,0.47357996]
[1771790815988,0.46528722,83.399,83.374,11.99402374]
[1771790816700,0.46528722,83.399,83.372,0.47357996]
[1771790817004,3.69383402,83.427,83.363,29.98915537]
[1771790817005,0.46528722,83.389,83.363,0.47357996]
[1771790818204,0.46528722,83.394,83.363,0.47357996]
[1771790821398,0.46528722,83.394,83.365,0.47357996]
[1771790821789,0.46528722,83.393,83.365,0.47357996]
[1771790826410,0.46528722,83.393,83.366,11.99529784]
[1771790826715,0.46528722,83.393,83.367,0.47357996]
[1771790831719,0.46528722,83.393,83.369,0.47412197]
[1771790832515,0.48938422,83.392,83.369,0.47412197]
[1771790841122,0.49170864,83.39,83.369,0.47412197]
[1771790844719,0.49170864,83.388,83.363,12.49562399]
[1771790844906,0.49170864,83.388,83.363,0.49993562]
[1771790846412,0.49170864,83.379,83.363,0.49993562]
[1771790849229,12.48517824,83.379,83.363,0.49993562]
[1771790849532,0.49170864,83.379,83.363,0.49993562]
[1771790850421,0.49170864,83.379,83.352,0.49993562]
[1771790850621,33.07336853,83.4,83.346,11.99805827]
[1771790850622,0.49170864,83.359,83.346,11.99805827]
[1771790851210,3.09722031,83.37,83.347,0.49993562]
[1771790851421,11.99357144,83.378,83.351,0.49993562]
[1771790853225,0.49170864,83.377,83.351,0.49993562]
[1771790853535,11.99385914,83.376,83.351,0.49993562]
[1771790854105,12.48556778,83.376,83.351,0.49993562]
[1771790854535,0.49170864,83.375,83.351,0.49993562]
[1771790866245,0.48926195,83.373,83.351,0.49993562]
[1771790874845,11.99443458,83.372,83.351,0.49993562]
[1771790875052,0.48926195,83.369,83.351,0.49993562]
[1771790891160,0.49506695,83.375,83.351,0.49993562]
[1771790891476,0.49506695,83.378,83.351,0.49993562]
[1771790893961,11.99371529,83.377,83.351,0.49993562]
[1771790894164,0.49506695,83.376,83.351,0.49993562]
[1771790896965,0.48502174,83.374,83.351,0.49993562]
[1771790904773,11.99429071,83.373,83.351,0.49993562]
[1771790905076,0.48502174,83.372,83.351,0.49993562]
[1771790913680,11.99457845,83.371,83.351,0.49993562]
[1771790913978,0.48502174,83.359,83.331,45.8689163]
[1771790914185,0.48502174,83.359,83.331,0.46697812]
[1771790915476,0.48502174,83.359,83.322,30.00380528]
[1771790915477,0.48502174,83.359,83.334,0.46697812]
[1771790917185,0.48502174,83.359,83.335,12.46673812]
[1771790919583,0.48502174,83.359,83.331,0.47034511]
[1771790919979,0.49202158,83.357,83.331,0.47034511]
[1771790920384,0.49202158,83.349,83.331,0.47034511]
[1771790925374,0.49202158,83.349,83.326,12.00104853]
[1771790927782,0.49202158,83.353,83.331,0.47034511]
[1771790931893,0.49202158,83.352,83.331,0.47034511]
[1771790939704,0.49202158,83.352,83.326,12.00104853]
[1771790939705,0.49202158,83.349,83.322,0.47034511]
[1771790940201,29.9914446,83.358,83.317,0.47034511]
[1771790940202,0.49202158,83.339,83.317,0.47034511]
[1771790940594,0.49202158,83.339,83.313,12.47324578]
[1771790942499,0.49202158,83.339,83.315,12.00264058]
[1771790943693,0.49202158,83.337,83.314,0.47034511]
[1771790943912,0.49202158,83.329,83.314,0.47034511]
[1771790944113,0.49202158,83.329,83.309,0.47034511]
[1771790945113,0.49202158,83.329,83.31,0.67034511]
[1771790949709,0.49202158,83.329,83.31,0.2]
[1771790949913,0.48782367,83.319,83.29,0.2]
[1771790950214,0.28432314,83.326,83.291,0.45390341]
[1771790950215,0.48782367,83.309,83.291,0.45390341]
[1771790950800,0.48782367,83.323,83.291,0.45390341]
[1771790951005,12.00076804,83.328,83.292,0.45390341]
[1771790951514,12.48859171,83.328,83.292,0.45390341]
[1771790951714,0.48782367,83.327,83.292,0.45390341]
[1771790953297,12.00105609,83.326,83.294,0.45390341]
[1771790953515,0.48782367,83.325,83.294,0.45390341]
[1771790954815,12.00046255,83.331,83.301,0.45390341]
[1771790958313,12.00046255,83.331,83.303,0.48002832]
[1771790959703,0.48782367,83.334,83.305,0.48002832]
[1771790960107,12.49171177,83.333,83.305,0.48002832]
[1771790963526,0.49166377,83.332,83.305,0.48002832]
[1771790965731,12.49198209,83.332,83.305,0.48002832]
[1771790967631,3.10118517,83.34,83.305,0.48002832]
[1771790967632,0.49166377,83.331,83.305,0.48002832]
[1771790971634,12.4920556,83.331,83.305,0.48002832]
[1771790973531,0.49166377,83.33,83.305,0.48002832]
[1771790977342,11.99918405,83.339,83.311,0.48002832]
[1771790977726,3.10118517,83.35,83.311,0.48002832]
[1771790977727,11.99804314,83.347,83.321,0.48002832]
[1771790985647,0.47079803,83.346,83.321,0.48002832]
[1771790987337,29.99076284,83.359,83.32,3.10118517]
[1771790987338,0.47079803,83.359,83.341,0.47881401]
[1771790988722,11.99644905,83.358,83.341,0.47881401]
[1771790990348,12.46724708,83.358,83.341,0.47881401]
[1771790997472,11.99644905,83.358,83.341,0.47881401]
[1771790999356,0.47079803,83.357,83.332,0.47881401]
[1771791003449,0.47079803,83.371,83.341,0.47881401]
[1771791006680,0.47079803,83.369,83.341,0.47881401]
[1771791008773,11.99501007,83.368,83.341,0.47881401]
[1771791008962,0.45983645,83.367,83.341,0.47881401]
[1771791015389,0.48269939,83.365,83.341,0.47881401]
[1771791030192,0.48269939,83.363,83.337,0.46652416]
[1771791035887,0.48269939,83.361,83.337,0.46652416]
[1771791039681,12.4888081,83.36,83.337,0.46652416]
[1771791039883,0.49264688,83.359,83.337,0.46652416]
[1771791041706,11.99644905,83.358,83.337,0.46652416]
[1771791046207,0.49264688,83.358,83.337,0.46652416]
[1771791048604,0.49264688,83.349,83.308,0.47424871]
[1771791048790,0.49264688,83.349,83.311,0.47424871]
[1771791049608,0.49264688,83.347,83.313,0.47424871]
[1771791053507,0.49264688,83.345,83.313,0.47424871]
[1771791054594,0.49264688,83.345,83.314,0.47424871]
[1771791058408,0.49264688,83.339,83.314,0.47424871]
[1771791060401,11.99932803,83.338,83.314,0.47424871]
[1771791060718,0.49264688,83.337,83.314,0.47424871]
[1771791063320,0.49264688,83.329,83.31,0.47424871]
[1771791064218,0.49264688,83.329,83.302,0.47424871]
[1771791064520,0.49264688,83.319,83.296,0.47424871]
[1771791065715,0.49264688,83.309,83.29,0.2]
[1771791066020,0.49264688,83.309,83.271,45.40193818]
[1771791066613,0.49264688,83.309,83.27,3.30168821]
[1771791067207,0.49264688,83.299,83.27,0.2]
[1771791067531,3.10168821,83.29,83.27,0.2]
[1771791067717,3.10168821,83.29,83.271,0.47424871]
[1771791067923,0.49264688,83.289,83.271,0.47424871]
[1771791074828,0.49264688,83.289,83.27,0.2]
[1771791075021,0.48269633,83.287,83.26,0.2]
[1771791075219,0.48269633,83.279,83.26,0.2]
[1771791078735,0.48269633,83.277,83.26,0.2]
[1771791078941,0.48269633,83.269,83.251,0.48027979]
[1771791079440,3.10168821,83.28,83.251,0.48027979]
[1771791079441,0.48269633,83.283,83.252,0.48027979]
[1771791080741,0.48269633,83.283,83.254,0.48027979]
[1771791082142,0.48269633,83.283,83.256,0.48027979]
[1771791092144,12.00609246,83.292,83.261,0.48027979]
[1771791093943,12.00609246,83.292,83.262,12.0102808]
[1771791094243,12.00609246,83.292,83.263,0.48027979]
[1771791095742,12.00609246,83.292,83.265,0.48027979]
[1771791096045,0.48269633,83.291,83.265,0.48027979]
[1771791096237,0.48269633,83.289,83.265,0.48027979]
[1771791096940,0.48269633,83.289,83.261,0.48027979]
[1771791100060,0.48269633,83.289,83.263,0.47185494]
[1771791102259,12.00653155,83.288,83.263,0.47185494]
[1771791102439,0.47918495,83.287,83.263,0.47185494]
[1771791111466,0.47918495,83.285,83.263,0.47185494]
[1771791111669,0.47918495,83.279,83.251,12.48372266]
[1771791111868,0.47918495,83.279,83.251,12.01186772]
[1771791112170,0.47918495,83.279,83.25,0.2]
[1771791112171,0.47918495,83.269,83.25,0.2]
[1771791114563,0.47918495,83.259,83.24,0.2]
[1771791114763,3.10168821,83.25,83.228,0.47185494]
[1771791114964,0.47918495,83.249,83.228,0.47185494]
[1771791118263,0.47918495,83.247,83.223,0.47185494]
[1771791119274,12.01153468,83.254,83.231,0.47185494]
[1771791120677,0.47918495,83.259,83.231,0.47185494]
[1771791121374,12.4884561,83.269,83.24,3.1088812]
[1771791121580,0.47918495,83.268,83.241,0.47185494]
[1771791126780,0.47918495,83.266,83.241,0.47185494]
[1771791130078,12.00984807,83.265,83.241,0.47185494]
[1771791130378,0.45382285,83.274,83.243,0.4835643]
[1771791134582,0.45382285,83.272,83.245,0.4835643]
[1771791134889,0.45382285,83.259,83.234,0.4835643]
[1771791137494,0.45382285,83.259,83.235,12.01417672]
[1771791137997,0.45382285,83.259,83.236,0.47787057]
[1771791150878,0.49469266,83.257,83.236,0.47787057]
[1771791151195,0.49469266,83.249,83.225,0.47787057]
[1771791153798,0.49469266,83.247,83.225,0.47787057]
[1771791156797,0.49469266,83.245,83.225,0.47787057]
[1771791157505,0.49469266,83.245,83.223,12.0157985]
[1771791158204,0.49469266,83.245,83.223,12.49366907]
[1771791158505,0.49469266,83.245,83.224,0.46181836]
[1771791160115,0.49469266,83.245,83.225,12.0156203]
[1771791162307,3.1088812,83.24,83.22,0.66181836]
[1771791162612,0.48767003,83.239,83.22,0.66181836]
[1771791166019,0.48767003,83.239,83.22,0.2]
[1771791166317,0.48767003,83.239,83.221,0.46181836]
[1771791166519,0.48767003,83.254,83.223,0.46181836]
[1771791166716,0.48767003,83.249,83.223,0.46181836]
[1771791167814,12.01230059,83.248,83.223,0.46181836]
[1771791168118,0.48767003,83.247,83.223,0.46181836]
[1771791169217,0.48767003,83.247,83.225,0.46181836]
[1771791170129,0.48767003,83.245,83.225,0.46181836]
[1771791170326,0.48767003,83.239,83.225,0.46181836]
[1771791170621,0.48767003,83.239,83.22,0.2]
[1771791170622,0.48767003,83.239,83.221,0.46181836]
[1771791170809,12.01258919,83.246,83.222,0.46181836]
[1771791172803,0.15728247,83.245,83.222,0.46181836]
[1771791173922,0.15728247,83.252,83.222,12.47781135]
[1771791174224,12.01143488,83.254,83.222,12.47781135]
[1771791174225,0.15728247,83.249,83.223,0.46181836]
[1771791177227,12.16943877,83.249,83.223,0.46181836]
[1771791177536,15.277324,83.26,83.223,0.46181836]
[1771791177831,3.10943159,83.25,83.225,0.46181836]
[1771791178041,3.26671406,83.25,83.225,0.46181836]
[1771791178211,0.15728247,83.249,83.225,0.46181836]
[1771791178717,3.10943159,83.24,83.225,0.46181836]
[1771791181628,0.15728247,83.229,83.22,0.2]
[1771791181836,3.10943159,83.23,83.22,0.2]
[1771791182021,0.15728247,83.233,83.22,0.2]
[1771791182224,3.10943159,83.25,83.221,0.46181836]
[1771791182520,0.15728247,83.249,83.222,0.46181836]
[1771791184116,0.15728247,83.248,83.222,0.46181836]
[1771791186622,3.10943159,83.25,83.224,0.46181836]
[1771791186929,12.01137942,83.255,83.224,0.46181836]
[1771791187135,12.16866189,83.255,83.224,0.46181836]
[1771791187931,0.15728247,83.254,83.226,0.46181836]
[1771791188139,0.15728247,83.249,83.226,0.46181836]
[1771791190435,0.15728247,83.248,83.226,0.46181836]
[1771791200247,12.0121563,83.249,83.226,0.46181836]
[1771791201946,3.26671406,83.25,83.226,0.46181836]
[1771791202947,12.0121563,83.249,83.226,0.46181836]
[1771791203728,0.15728247,83.248,83.226,0.46181836]
[1771791205743,12.0121563,83.249,83.226,0.46181836]
[1771791205944,12.16943877,83.249,83.226,0.46181836]
[1771791206143,0.15728247,83.248,83.226,0.46181836]
[1771791212458,0.15728247,83.252,83.226,0.46181836]
[1771791212757,0.15728247,83.249,83.226,0.46181836]
[1771791214755,0.15728247,83.248,83.226,0.46181836]
[1771791223671,0.15728247,83.255,83.226,0.46181836]
[1771791224477,0.15728247,83.249,83.226,0.46181836]
[1771791224658,0.15728247,83.249,83.221,0.47887688]
[1771791226082,0.15728247,83.239,83.22,0.2]
[1771791226977,0.15728247,83.229,83.21,0.1]
[1771791227488,0.15728247,83.229,83.21,0.57887688]
[1771791233984,3.10943159,83.22,83.21,0.1]
[1771791234791,3.10943159,83.22,83.211,0.47887688]
[1771791235086,3.10943159,83.23,83.211,0.47887688]
[1771791235277,3.26671406,83.23,83.211,0.47887688]
[1771791236412,3.10943159,83.23,83.211,0.47887688]
[1771791237292,3.11032023,83.23,83.211,0.47887688]
[1771791238396,12.01663101,83.218,83.171,42.08197568]
[1771791238583,0.4720458,83.209,83.171,42.08197568]
[1771791238892,0.4720458,83.209,83.18,3.11032023]
[1771791240191,0.4720458,83.209,83.181,0.47887688]
[1771791240584,0.4720458,83.209,83.181,12.02197617]
[1771791242590,0.4720458,83.209,83.184,0.47887688]
[1771791243983,0.4720458,83.209,83.186,0.47887688]
[1771791254706,0.4720458,83.209,83.187,12.02110906]
[1771791254903,12.51127317,83.212,83.188,0.47693167]
[1771791255410,0.48303742,83.211,83.188,0.47693167]
[1771791261703,0.48303742,83.208,83.183,0.47741723]
[1771791262298,0.48303742,83.199,83.172,0.47741723]
[1771791264200,0.48303742,83.199,83.173,12.0231325]
[1771791264406,0.48303742,83.199,83.174,0.47741723]
[1771791265519,30.04248334,83.216,83.15,3.11032023]
[1771791265520,0.48303742,83.189,83.15,3.11032023]
[1771791265896,0.48303742,83.189,83.16,3.11032023]
[1771791266608,0.48303742,83.187,83.16,3.11032023]
[1771791266800,3.69383402,83.216,83.14,0.1]
[1771791266801,0.48303742,83.195,83.17,3.11032023]
[1771791267520,0.48303742,83.195,83.171,0.40754654]
[1771791268418,0.48303742,83.2,83.181,0.40754654]
[1771791269013,12.01937523,83.199,83.181,0.40754654]
[1771791271002,0.48303742,83.206,83.181,0.40754654]
[1771791273214,0.48303742,83.205,83.181,0.40754654]
[1771791278230,12.01865294,83.204,83.181,0.40754654]
[1771791278527,0.46143997,83.203,83.181,0.40754654]
[1771791278826,0.46143997,83.203,83.178,12.02239565]
[1771791279220,0.46143997,83.199,83.16,3.11032023]
[1771791279528,0.46143997,83.199,83.161,0.40754654]
[1771791284724,0.46143997,83.189,83.162,12.43226937]
[1771791284908,0.46143997,83.189,83.163,0.40754654]
[1771791286435,0.46143997,83.189,83.164,12.02443364]
[1771791286732,0.46143997,83.189,83.164,12.43198018]
[1771791287733,3.69383402,83.217,83.048,54.16]
[1771791287734,0.46143997,83.179,83.157,0.40754654]
[1771791288038,0.46143997,83.179,83.152,0.40754654]
[1771791289025,0.46143997,83.191,83.154,0.40754654]
[1771791289227,0.46143997,83.189,83.161,0.40754654]
[1771791290722,12.02096456,83.188,83.161,0.40754654]
[1771791291034,0.46143997,83.187,83.161,0.40754654]
[1771791292639,0.46143997,83.185,83.161,0.40754654]
[1771791300444,48.0288978,83.284,83.171,0.46411516]
[1771791300738,12.01648661,83.219,83.191,0.46411516]
[1771791302127,3.11359533,83.21,83.183,0.46411516]
[1771791302326,3.11359533,83.21,83.184,0.46411516]
[1771791302528,0.46143997,83.209,83.171,0.46411516]
[1771791302833,12.01648661,83.219,83.191,0.46411516]
[1771791304621,0.28432314,83.228,83.191,0.46411516]
[1771791304821,0.46143997,83.225,83.191,0.46411516]
[1771791305638,0.46143997,83.223,83.201,0.46411516]
[1771791308147,12.01605344,83.222,83.201,0.46411516]
[1771791308332,12.50269741,83.222,83.201,0.46411516]
[1771791308527,0.48664397,83.221,83.201,0.46411516]
[1771791311333,12.50298619,83.22,83.201,0.46411516]
[1771791311845,0.48664397,83.219,83.191,0.48201791]
[1771791312224,0.48664397,83.224,83.192,0.48201791]
[1771791313633,0.48664397,83.224,83.194,0.48201791]
[1771791317138,0.48664397,83.224,83.196,0.48066098]
[1771791322657,0.48664397,83.224,83.198,0.48066098]
[1771791329142,0.47622595,83.222,83.198,0.48066098]
[1771791342780,30.03702883,83.231,83.201,0.46511787]
[1771791342781,0.47968812,83.228,83.201,0.46511787]
[1771791346489,0.47968812,83.226,83.201,0.46511787]
[1771791349563,0.47968812,83.232,83.203,0.46511787]
[1771791350779,0.47968812,83.232,83.205,0.46511787]
[1771791352873,0.47968812,83.232,83.207,0.46511787]
[1771791353172,0.47968812,83.232,83.211,0.46511787]
[1771791359281,3.11359533,83.24,83.211,0.46511787]
[1771791359282,0.47968812,83.23,83.211,0.46511787]
[1771791360779,3.11359533,83.23,83.211,0.46511787]
[1771791360983,0.47968812,83.229,83.211,0.46511787]
[1771791361282,12.01475411,83.231,83.211,0.46511787]
[1771791361467,12.0133551,83.241,83.212,0.46511787]
[1771791362476,12.0121563,83.249,83.212,0.46511787]
[1771791362681,12.0121563,83.249,83.214,0.46511787]
[1771791363580,0.1898854,83.248,83.214,0.46511787]
[1771791365880,3.11037317,83.24,83.214,0.46511787]
[1771791370188,3.30025857,83.24,83.214,0.46511787]
[1771791371089,0.1898854,83.248,83.216,0.49827632]
[1771791372875,0.1898854,83.246,83.216,0.49827632]
[1771791375990,12.01273349,83.245,83.216,0.49827632]
[1771791376198,12.20261889,83.245,83.216,0.49827632]
[1771791376898,12.01273349,83.245,83.216,0.49827632]
[1771791377194,0.1898854,83.244,83.216,0.49827632]
[1771791378679,12.01302211,83.243,83.216,0.49827632]
[1771791380392,0.1898854,83.242,83.216,0.49827632]
[1771791380579,0.1898854,83.245,83.216,0.49827632]
[1771791383499,0.1898854,83.243,83.216,0.49827632]
[1771791384501,12.01316643,83.242,83.216,0.49827632]
[1771791384885,12.0105693,83.26,83.221,0.46581733]
[1771791385184,12.0105693,83.26,83.217,42.05871395]
[1771791385185,12.00840588,83.275,83.241,0.46581733]
[1771791385388,0.2,83.28,83.261,0.46581733]
[1771791385694,0.3898854,83.289,83.251,0.46581733]
[1771791385900,0.3898854,83.279,83.251,0.46581733]
[1771791386695,0.3898854,83.277,83.251,0.46581733]
[1771791387099,0.46490737,83.269,83.23,3.11037317]
[1771791388601,0.46490737,83.259,83.222,30.03980949]
[1771791388987,0.46490737,83.259,83.223,0.46581733]
[1771791389902,0.46490737,83.259,83.224,12.01576468]
[1771791390204,0.46490737,83.259,83.225,0.46581733]
[1771791390399,3.11037317,83.28,83.225,0.46581733]
[1771791390400,3.11037317,83.25,83.225,0.46581733]
[1771791390588,0.46490737,83.249,83.225,0.46581733]
[1771791392408,0.46490737,83.253,83.23,3.11037317]
[1771791392586,3.11037317,83.27,83.231,0.46581733]
[1771791392587,0.46490737,83.268,83.231,0.46581733]
[1771791393506,12.0095596,83.267,83.231,12.01466378]
[1771791393803,0.46490737,83.266,83.232,0.46581733]
[1771791395005,0.46490737,83.259,83.232,0.46581733]
[1771791396302,0.46490737,83.258,83.232,0.46581733]
[1771791397405,3.11037317,83.25,83.221,0.46581733]
[1771791397609,12.01100207,83.257,83.21,3.11037317]
[1771791397610,0.46490737,83.239,83.211,0.46581733]
[1771791402410,0.48920013,83.237,83.211,0.46581733]
[1771791406910,0.48920013,83.235,83.211,0.46581733]
[1771791410010,12.0130729,83.243,83.213,0.45185618]
[1771791411204,12.50227303,83.243,83.213,0.45185618]
[1771791411398,12.50227303,83.243,83.212,12.01749747]
[1771791411399,12.50227303,83.243,83.215,0.45185618]
[1771791411706,0.48920013,83.258,83.221,0.45185618]
[1771791412804,0.48920013,83.256,83.223,0.45185618]
[1771791413316,3.11037317,83.25,83.223,0.45185618]
[1771791414315,0.48920013,83.249,83.223,0.45185618]
[1771791417125,0.48920013,83.249,83.225,0.45185618]
[1771791420909,3.69383402,83.265,83.21,3.11037317]
[1771791420910,0.48920013,83.267,83.231,0.45185618]
[1771791421229,0.48920013,83.267,83.241,0.45185618]
[1771791422013,0.48920013,83.267,83.242,12.01316643]
[1771791422221,3.11037317,83.27,83.243,0.45185618]
[1771791422422,0.48920013,83.287,83.251,0.45185618]
[1771791422622,0.2,83.29,83.261,0.45185618]
[1771791424042,0.2,83.29,83.263,0.45185618]
[1771791424215,0.2,83.29,83.271,0.45185618]
[1771791426409,0.2,83.29,83.273,0.45185618]
[1771791426824,12.0044612,83.303,83.274,0.45185618]
[1771791427013,0.48920013,83.303,83.281,0.45185618]
[1771791427219,0.2,83.31,83.281,0.45185618]
[1771791427220,0.48920013,83.307,83.281,0.45185618]
[1771791431226,0.48920013,83.307,83.29,3.10514339]
[1771791435030,0.2,83.31,83.301,0.47641334]
[1771791436314,0.2,83.31,83.3,3.10514339]
[1771791436716,0.48972757,83.309,83.3,3.10514339]
[1771791436923,0.48972757,83.309,83.296,0.47641334]
[1771791441643,0.2,83.31,83.296,0.47641334]
[1771791441820,0.2,83.32,83.301,0.47641334]
[1771791442026,0.2,83.32,83.311,0.47641334]
[1771791442340,0.48972757,83.329,83.311,0.47641334]
[1771791443025,12.00048001,83.33,83.311,0.47641334]
[1771791443345,11.99958024,83.337,83.321,0.47641334]
[1771791443520,0.48972757,83.336,83.321,0.47641334]
[1771791443918,0.48972757,83.336,83.311,0.47641334]
[1771791445920,0.48972757,83.334,83.31,3.10514339]
[1771791447426,0.48972757,83.334,83.308,0.47641334]
[1771791448427,0.48972757,83.334,83.31,3.10514339]
[1771791448727,0.48972757,83.334,83.311,0.47641334]
[1771791453534,0.48972757,83.332,83.311,0.47641334]
[1771791461057,0.45657417,83.33,83.311,0.47641334]
[1771791480768,0.45657417,83.328,83.303,0.47110454]
[1771791482060,0.45657417,83.326,83.303,0.47110454]
[1771791482851,0.45657417,83.326,83.286,30.0168418]
[1771791482852,0.45657417,83.319,83.28,3.57624793]
[1771791483056,0.45657417,83.309,83.271,0.47110454]
[1771791483254,0.45657417,83.309,83.28,3.10438724]
[1771791483467,0.45657417,83.309,83.281,0.47110454]
[1771791484663,0.45657417,83.308,83.281,0.47110454]
[1771791484872,0.45657417,83.308,83.283,0.47110454]
[1771791486077,0.45657417,83.307,83.283,0.47110454]
[1771791488575,0.48988447,83.305,83.283,0.47110454]
[1771791489078,0.48988447,83.305,83.28,3.10438724]
[1771791489079,0.48988447,83.303,83.275,0.47506667]
[1771791491365,0.48988447,83.311,83.281,0.47506667]